fUSD/lending_fUSD_20250505
["ID","MTS","AMOUNT","RATE_DAILY","PERIOD"]
[359962458,1746451842414,-466.20876886,0.00019898,2]
[359962473,1746451842547,-463.67267312,0.00019898,2]
[359962476,1746451842557,-450.0,0.00019898,2]
[359962478,1746451842566,-454.56804679,0.00019898,2]
[359962479,1746451842575,-452.77360044,0.00019898,2]
[359962481,1746451842585,-450.0,0.00019898,2]
[359962484,1746451842595,-450.0,0.00019898,2]
[359962486,1746451842604,-450.0,0.00019898,2]
[359962489,1746451842613,-465.16253598,0.00019898,2]
[359962492,1746451842623,-508.7434677,0.00019898,2]
[359962495,1746451842632,-450.0,0.00019898,2]
[359962497,1746451842641,-807.96,0.00019898,2]
[359962500,1746451842651,-539.41910646,0.00019898,2]
[359962502,1746451842660,-472.9973273,0.00019898,2]
[359962505,1746451842670,-450.93532248,0.00019898,2]
[359962507,1746451842679,-450.0,0.00019898,2]
[359962509,1746451842689,-450.0,0.00019898,2]
[359962512,1746451842699,-450.0,0.00019898,2]
[359962515,1746451842708,-450.0,0.00019898,2]
[359962519,1746451842718,-456.8803381,0.00019898,2]
[359962521,1746451842728,-450.0,0.00019898,2]
[359962525,1746451842738,-450.0,0.00019898,2]
[359962527,1746451842751,-461.52968433,0.00019898,2]
[359962529,1746451842768,-450.0,0.00019898,2]
[359962531,1746451842992,-450.0,0.00019898,2]
[359962532,1746451843002,-463.90501597,0.00019898,2]
[359962533,1746451843012,-465.35533004,0.00019898,2]
[359962534,1746451843020,-525.59027572,0.00019898,2]
[359962535,1746451843031,-450.0,0.00019898,2]
[359962536,1746451843040,-450.0,0.00019898,2]
[359962537,1746451843050,-450.0,0.00019898,2]
[359962538,1746451843059,-496.72202146,0.00019898,2]
[359962539,1746451843068,-518.56061838,0.00019898,2]
[359962540,1746451843077,-471.72,0.00019898,2]
[359962541,1746451843087,-459.03964489,0.00019898,2]
[359962542,1746451843096,-456.11379525,0.00019898,2]
[359962543,1746451843105,-500.0,0.00019898,2]
[359962544,1746451843114,-558.6486388,0.00019898,2]
[359962545,1746451843123,-450.0,0.00019898,2]
[359962546,1746451843133,-450.0,0.00019898,2]
[359962547,1746451843142,-461.10912373,0.00019898,2]
[359962548,1746451843151,-450.0,0.00019898,2]
[359962550,1746451843160,-458.56547933,0.00019898,2]
[359962551,1746451843169,-521.53963616,0.00019898,2]
[359962552,1746451843180,-153.329358,0.00019898,2]
[359962553,1746451843189,-151.0,0.00019898,2]
[359962554,1746451843201,-470.0,0.00019898,2]
[359962555,1746451843210,-464.12529235,0.00019898,2]
[359962556,1746451843220,-151.0,0.00019898,2]
[359962558,1746451843229,-151.0,0.00019898,2]
[359962560,1746451843239,-450.0,0.00019898,2]
[359962561,1746451843248,-450.0,0.00019898,2]
[359962562,1746451843257,-160.67892,0.00019898,2]
[359962563,1746451843266,-500.0,0.00019898,2]
[359962564,1746451843275,-177.50200229,0.00019898,2]
[359962565,1746451843285,-500.0,0.00019898,2]
[359962566,1746451843294,-500.0,0.00019898,2]
[359962567,1746451843303,-500.0,0.00019898,2]
[359962568,1746451843312,-500.0,0.00019898,2]
[359962569,1746451843322,-500.0,0.00019898,2]
[359962570,1746451843331,-500.0,0.00019898,2]
[359962571,1746451843340,-299.552165,0.00019898,2]
[359962572,1746451843349,-500.0,0.00019898,2]
[359962573,1746451843358,-450.0,0.00019898,2]
[359962574,1746451843367,-450.0,0.00019898,2]
[359962575,1746451843377,-450.0,0.00019898,2]
[359962576,1746451843386,-450.0,0.00019898,2]
[359962577,1746451843395,-450.0,0.00019898,2]
[359962578,1746451843405,-833.451003,0.00019898,2]
[359962579,1746451843414,-450.0,0.00019898,2]
[359962580,1746451843424,-833.451003,0.00019898,2]
[359962581,1746451843433,-151.0,0.00019898,2]
[359962582,1746451843443,-450.0,0.00019898,2]
[359962583,1746451843454,-450.0,0.00019898,2]
[359962584,1746451843463,-151.0,0.00019898,2]
[359962585,1746451843472,-155.206467,0.00019898,2]
[359962587,1746451843482,-450.0,0.00019898,2]
[359962589,1746451843491,-450.0,0.00019898,2]
[359962591,1746451843501,-533.66897858,0.00019898,2]
[359962592,1746451843510,-450.0,0.00019898,2]
[359962593,1746451843519,-250.0,0.00019898,2]
[359962594,1746451843529,-450.0,0.00019898,2]
[359962595,1746451843538,-450.0,0.00019898,2]
[359962596,1746451843547,-450.0,0.00019898,2]
[359962597,1746451843556,-450.0,0.00019898,2]
[359962598,1746451843566,-151.0,0.00019898,2]
[359962599,1746451843575,-151.0,0.00019898,2]
[359962601,1746451843584,-450.0,0.00019898,2]
[359962602,1746451843593,-450.0,0.00019898,2]
[359962603,1746451843602,-450.0,0.00019898,2]
[359962604,1746451843612,-450.0,0.00019898,2]
[359962605,1746451843621,-151.0,0.00019898,2]
[359962606,1746451843631,-450.0,0.00019898,2]
[359962607,1746451843640,-151.0,0.00019898,2]
[359962608,1746451843649,-151.0,0.00019898,2]
[359962609,1746451843658,-151.0,0.00019898,2]
[359962610,1746451843667,-151.0,0.00019898,2]
[359962611,1746451843677,-151.0,0.00019898,2]
[359962612,1746451843686,-151.0,0.00019898,2]
[359962613,1746451843697,-192.271919,0.00019898,2]
[359962614,1746451843707,-450.0,0.00019898,2]
[359962615,1746451843718,-450.0,0.00019898,2]
[359962616,1746451843727,-450.0,0.00019898,2]
[359962617,1746451843737,-450.0,0.00019898,2]
[359962618,1746451843746,-151.0,0.00019898,2]
[359962619,1746451843756,-151.0,0.00019898,2]
[359962620,1746451843765,-153.462348,0.00019898,2]
[359962621,1746451843774,-151.0,0.00019898,2]
[359962622,1746451843783,-151.0,0.00019898,2]
[359962623,1746451843793,-223.711802,0.00019898,2]
[359962624,1746451843803,-450.0,0.00019898,2]
[359962625,1746451843816,-223.711802,0.00019898,2]
[359962626,1746451843826,-450.0,0.00019898,2]
[359962627,1746451843835,-450.0,0.00019898,2]
[359962628,1746451843844,-156.198394,0.00019898,2]
[359962629,1746451843855,-156.198394,0.00019898,2]
[359962630,1746451843864,-156.198394,0.00019898,2]
[359962631,1746451843873,-156.198394,0.00019898,2]
[359962632,1746451843883,-450.0,0.00019898,2]
[359962633,1746451843894,-450.0,0.00019898,2]
[359962634,1746451843904,-450.0,0.00019898,2]
[359962635,1746451843913,-450.0,0.00019898,2]
[359962636,1746451843922,-450.0,0.00019898,2]
[359962637,1746451843931,-450.0,0.00019898,2]
[359962638,1746451843941,-151.0,0.00019898,2]
[359962639,1746451843953,-154.823069,0.00019898,2]
[359962640,1746451843962,-477.99,0.00019898,2]
[359962641,1746451843971,-450.0,0.00019898,2]
[359962642,1746451843980,-450.0,0.00019898,2]
[359962644,1746451843990,-151.0,0.00019898,2]
[359962646,1746451844000,-153.609421,0.00019898,2]
[359962648,1746451844009,-450.0,0.00019898,2]
[359962650,1746451844018,-151.0,0.00019898,2]
[359962652,1746451844027,-151.0,0.00019898,2]
[359962653,1746451844037,-151.598433,0.00019898,2]
[359962654,1746451844047,-450.0,0.00019898,2]
[359962655,1746451844058,-151.0,0.00019898,2]
[359962656,1746451844067,-151.0,0.00019898,2]
[359962657,1746451844077,-450.0,0.00019898,2]
[359962658,1746451844086,-205.238441,0.00019898,2]
[359962659,1746451844096,-198.995215,0.00019898,2]
[359962660,1746451844105,-450.0,0.00019898,2]
[359962661,1746451844113,-151.0,0.00019898,2]
[359962662,1746451844122,-151.0,0.00019898,2]
[359962663,1746451844131,-450.0,0.00019898,2]
[359962664,1746451844140,-520.24525347,0.00019898,2]
[359962665,1746451844149,-450.0,0.00019898,2]
[359962666,1746451844158,-450.0,0.00019898,2]
[359962667,1746451844167,-450.0,0.00019898,2]
[359962668,1746451844175,-151.0,0.00019898,2]
[359962669,1746451844185,-155.833512,0.00019898,2]
[359962670,1746451844193,-450.0,0.00019898,2]
[359962671,1746451844203,-151.0,0.00019898,2]
[359962672,1746451844213,-151.0,0.00019898,2]
[359962673,1746451844222,-450.0,0.00019898,2]
[359962674,1746451844231,-450.0,0.00019898,2]
[359962675,1746451844240,-450.0,0.00019898,2]
[359962676,1746451844248,-450.0,0.00019898,2]
[359962677,1746451844257,-450.0,0.00019898,2]
[359962678,1746451844266,-450.0,0.00019898,2]
[359962679,1746451844276,-450.0,0.00019898,2]
[359962680,1746451844285,-644.57,0.00019898,2]
[359962681,1746451844294,-450.0,0.00019898,2]
[359962682,1746451844304,-450.0,0.00019898,2]
[359962683,1746451844318,-450.0,0.00019898,2]
[359962684,1746451844327,-450.0,0.00019898,2]
[359962685,1746451844337,-450.0,0.00019898,2]
[359962686,1746451844346,-450.0,0.00019898,2]
[359962687,1746451844356,-521.14833361,0.00019898,2]
[359962688,1746451844365,-450.0,0.00019898,2]
[359962689,1746451844375,-151.0,0.00019898,2]
[359962690,1746451844384,-151.124143,0.00019898,2]
[359962691,1746451844393,-450.0,0.00019898,2]
[359962692,1746451844403,-450.0,0.00019898,2]
[359962693,1746451844414,-450.0,0.00019898,2]
[359962694,1746451844423,-1641.740702,0.00019898,2]
[359962695,1746451844432,-1641.740702,0.00019898,2]
[359962696,1746451844441,-450.0,0.00019898,2]
[359962697,1746451844451,-1641.740702,0.00019898,2]
[359962698,1746451844461,-1641.740702,0.00019898,2]
[359962699,1746451844470,-450.0,0.00019898,2]
[359962700,1746451844479,-450.0,0.00019898,2]
[359962701,1746451844488,-450.0,0.00019898,2]
[359962702,1746451844497,-450.0,0.00019898,2]
[359962703,1746451844507,-450.0,0.00019898,2]
[359962704,1746451844516,-450.0,0.00019898,2]
[359962705,1746451844526,-450.0,0.00019898,2]
[359962706,1746451844535,-450.0,0.00019898,2]
[359962707,1746451844544,-450.0,0.00019898,2]
[359962708,1746451844553,-450.0,0.00019898,2]
[359962709,1746451844563,-450.0,0.00019898,2]
[359962710,1746451844571,-450.0,0.00019898,2]
[359962711,1746451844580,-450.0,0.00019898,2]
[359962712,1746451844589,-450.0,0.00019898,2]
[359962713,1746451844599,-450.0,0.00019898,2]
[359962714,1746451844608,-450.0,0.00019898,2]
[359962715,1746451844617,-450.0,0.00019898,2]
[359962716,1746451844626,-151.0,0.00019898,2]
[359962717,1746451844635,-154.219957,0.00019898,2]
[359962718,1746451844645,-450.0,0.00019898,2]
[359962719,1746451844654,-450.0,0.00019898,2]
[359962720,1746451844664,-151.0,0.00019898,2]
[359962721,1746451844673,-458.05763647,0.00019898,2]
[359962722,1746451844683,-450.0,0.00019898,2]
[359962723,1746451844692,-492.94121386,0.00019898,2]
[359962724,1746451844703,-258.760831,0.00019898,2]
[359962725,1746451844712,-151.0,0.00019898,2]
[359962726,1746451844722,-258.760831,0.00019898,2]
[359962727,1746451844735,-258.760831,0.00019898,2]
[359962728,1746451844748,-258.760831,0.00019898,2]
[359962729,1746451844764,-151.0,0.00019898,2]
[359962730,1746451844783,-450.0,0.00019898,2]
[359962731,1746451844796,-450.0,0.00019898,2]
[359962732,1746451844805,-450.0,0.00019898,2]
[359962733,1746451844819,-450.0,0.00019898,2]
[359962734,1746451844829,-450.0,0.00019898,2]
[359962735,1746451844838,-450.0,0.00019898,2]
[359962736,1746451844847,-516.31923333,0.00019898,2]
[359962737,1746451844857,-151.0,0.00019898,2]
[359962738,1746451844866,-151.0,0.00019898,2]
[359962739,1746451844875,-450.0,0.00019898,2]
[359962740,1746451844884,-450.0,0.00019898,2]
[359962741,1746451844894,-450.0,0.00019898,2]
[359962742,1746451844904,-500.0,0.00019898,2]
[359962743,1746451844914,-450.0,0.00019898,2]
[359962744,1746451844923,-500.0,0.00019898,2]
[359962745,1746451844931,-151.0,0.00019898,2]
[359962746,1746451844941,-450.0,0.00019898,2]
[359962747,1746451844951,-450.0,0.00019898,2]
[359962748,1746451844961,-450.0,0.00019898,2]
[359962749,1746451844970,-450.0,0.00019898,2]
[359962750,1746451844979,-500.0,0.00019898,2]
[359962751,1746451844989,-450.0,0.00019898,2]
[359962752,1746451844998,-894.43,0.00019898,2]
[359962753,1746451845008,-151.0,0.00019898,2]
[359962754,1746451845019,-450.0,0.00019898,2]
[359962755,1746451845028,-450.0,0.00019898,2]
[359962756,1746451845038,-488.81429643,0.00019898,2]
[359962757,1746451845047,-151.0,0.00019898,2]
[359962758,1746451845056,-450.0,0.00019898,2]
[359962759,1746451845065,-450.0,0.00019898,2]
[359962760,1746451845074,-450.0,0.00019898,2]
[359962761,1746451845084,-450.0,0.00019898,2]
[359962762,1746451845093,-152.545956,0.00019898,2]
[359962763,1746451845103,-450.0,0.00019898,2]
[359962764,1746451845112,-723.5,0.00019898,2]
[359962765,1746451845122,-450.0,0.00019898,2]
[359962766,1746451845131,-450.0,0.00019898,2]
[359962767,1746451845141,-151.0,0.00019898,2]
[359962768,1746451845268,-450.0,0.00019898,2]
[359962769,1746451845278,-557.17,0.00019898,2]
[359962770,1746451845287,-450.0,0.00019898,2]
[359962771,1746451845297,-825.0,0.00019898,2]
[359962772,1746451845306,-467.45820844,0.00019898,2]
[359962773,1746451845315,-450.0,0.00019898,2]
[359962774,1746451845324,-593.71,0.00019898,2]
[359962775,1746451845334,-532.67,0.00019898,2]
[359962776,1746451845343,-151.0,0.00019898,2]
[359962777,1746451845352,-450.0,0.00019898,2]
[359962778,1746451845361,-365.65,0.00019898,2]
[359962779,1746451845371,-450.0,0.00019898,2]
[359962780,1746451845380,-450.0,0.00019898,2]
[359962781,1746451845389,-450.0,0.00019898,2]
[359962782,1746451845398,-597.91,0.00019898,2]
[359962783,1746451845409,-450.0,0.00019898,2]
[359962784,1746451845418,-3893.73,0.00019898,2]
[359962785,1746451845427,-450.0,0.00019898,2]
[359962786,1746451845436,-581.76,0.00019898,2]
[359962787,1746451845447,-638.88,0.00019898,2]
[359962788,1746451845456,-450.0,0.00019898,2]
[359962789,1746451845465,-832.9,0.00019898,2]
[359962790,1746451845474,-151.0,0.00019898,2]
[359962791,1746451845484,-961.4,0.00019898,2]
[359962792,1746451845493,-450.0,0.00019898,2]
[359962793,1746451845502,-450.0,0.00019898,2]
[359962794,1746451845510,-450.0,0.00019898,2]
[359962795,1746451845519,-5356.25,0.00019898,2]
[359962796,1746451845528,-151.0,0.00019898,2]
[359962797,1746451845537,-450.0,0.00019898,2]
[359962798,1746451845546,-572.6,0.00019898,2]
[359962799,1746451845555,-151.0,0.00019898,2]
[359962801,1746451845564,-151.0,0.00019898,2]
[359962802,1746451845573,-450.0,0.00019898,2]
[359962804,1746451845583,-450.0,0.00019898,2]
[359962806,1746451845592,-450.0,0.00019899,2]
[359962807,1746451845601,-450.0,0.00019899,2]
[359962808,1746451845610,-450.0,0.00019899,2]
[359962809,1746451845619,-450.0,0.00019899,2]
[359962810,1746451845628,-450.0,0.00019899,2]
[359962811,1746451845638,-450.0,0.00019899,2]
[359962813,1746451845647,-450.0,0.00019899,2]
[359962815,1746451845657,-568.69340176,0.00019899,2]
[359962818,1746451845666,-450.0,0.00019899,2]
[359962821,1746451845676,-450.0,0.00019899,2]
[359962823,1746451845685,-450.0,0.00019899,2]
[359962825,1746451845695,-450.0,0.00019899,2]
[359962827,1746451845705,-508.71688231,0.00019899,2]
[359962829,1746451845714,-450.0,0.00019899,2]
[359962831,1746451845724,-450.0,0.00019899,2]
[359962833,1746451845734,-450.0,0.00019899,2]
[359962835,1746451845743,-188.7153091,0.00019899,2]
[359962837,1746451845752,-450.0,0.00019899,2]
[359962839,1746451845761,-510.18411999,0.00019899,2]
[359962840,1746451845771,-500.99803008,0.00019899,2]
[359962841,1746451845781,-450.0,0.00019899,2]
[359962842,1746451845790,-504.17099509,0.00019899,2]
[359962843,1746451845799,-499.64154385,0.00019899,2]
[359962844,1746451845809,-571.8527472,0.00019899,2]
[359962845,1746451845822,-450.0,0.00019899,2]
[359962846,1746451845831,-450.0,0.00019899,2]
[359962847,1746451845841,-450.0,0.00019899,2]
[359962848,1746451845852,-450.0,0.00019899,2]
[359962849,1746451845861,-450.0,0.00019899,2]
[359962850,1746451845871,-554.29742246,0.00019899,2]
[359962851,1746451845881,-499.95781804,0.00019899,2]
[359962852,1746451845891,-495.55925297,0.00019899,2]
[359962853,1746451845901,-450.0,0.00019899,2]
[359962854,1746451845910,-450.0,0.00019899,2]
[359962855,1746451845921,-587.66660892,0.00019899,2]
[359962856,1746451845930,-516.82376711,0.00019899,2]
[359962857,1746451845940,-505.91607021,0.00019899,2]
[359962858,1746451845949,-450.0,0.00019899,2]
[359962859,1746451845958,-450.0,0.00019899,2]
[359962860,1746451845968,-450.0,0.00019899,2]
[359962861,1746451845977,-450.0,0.00019899,2]
[359962862,1746451845986,-538.27318182,0.00019899,2]
[359962863,1746451845995,-450.0,0.00019899,2]
[359962864,1746451846005,-511.95468885,0.00019899,2]
[359962865,1746451846014,-335.81864551,0.00019899,2]
[359962866,1746451846023,-450.0,0.00019899,2]
[359962867,1746451846032,-498.90188106,0.00019899,2]
[359962868,1746451846041,-450.0,0.00019899,2]
[359962869,1746451846050,-569.10244832,0.00019899,2]
[359962870,1746451846059,-450.0,0.00019899,2]
[359962871,1746451846068,-490.87875543,0.00019899,2]
[359962872,1746451846077,-510.15604118,0.00019899,2]
[359962873,1746451846087,-450.0,0.00019899,2]
[359962874,1746451846095,-450.0,0.00019899,2]
[359962875,1746451846104,-450.0,0.00019899,2]
[359962876,1746451846114,-151.0,0.00019899,2]
[359962877,1746451846123,-298.20338739,0.00019899,2]
[359962878,1746451846132,-505.03392445,0.00019899,2]
[359962879,1746451846142,-450.0,0.00019899,2]
[359962880,1746451846151,-510.53741987,0.00019899,2]
[359962881,1746451846160,-500.99771152,0.00019899,2]
[359962882,1746451846169,-504.32537222,0.00019899,2]
[359962884,1746451846178,-507.29516693,0.00019899,2]
[359962885,1746451846187,-583.1868487,0.00019899,2]
[359962886,1746451846198,-491.0667093,0.00019899,2]
[359962887,1746451846208,-425.0,0.00019899,2]
[359962888,1746451846217,-450.0,0.00019899,2]
[359962889,1746451846226,-522.10512428,0.00019899,2]
[359962890,1746451846235,-450.0,0.00019899,2]
[359962891,1746451846244,-500.85043844,0.00019899,2]
[359962892,1746451846254,-492.18022562,0.00019899,2]
[359962893,1746451846263,-450.0,0.00019899,2]
[359962894,1746451846272,-450.0,0.00019899,2]
[359962896,1746451846281,-450.0,0.00019899,2]
[359962897,1746451846290,-496.47963949,0.00019899,2]
[359962899,1746451846299,-500.0,0.00019899,2]
[359962901,1746451846309,-502.91885201,0.00019899,2]
[359962903,1746451846318,-450.0,0.00019899,2]
[359962905,1746451846327,-450.0,0.00019899,2]
[359962907,1746451846337,-507.21710966,0.00019899,2]
[359962909,1746451846346,-203.9857217,0.00019899,2]
[359962911,1746451846355,-450.0,0.00019899,2]
[359962913,1746451846364,-450.0,0.00019899,2]
[359962915,1746451846373,-564.15930112,0.00019899,2]
[359962917,1746451846382,-450.0,0.00019899,2]
[359962919,1746451846391,-450.0,0.00019899,2]
[359962921,1746451846400,-500.0,0.00019899,2]
[359962923,1746451846409,-450.0,0.00019899,2]
[359962925,1746451846418,-503.14406159,0.00019899,2]
[359962927,1746451846427,-483.32849056,0.00019899,2]
[359962929,1746451846437,-153.959399,0.00019899,2]
[359962931,1746451846446,-450.0,0.00019899,2]
[359962933,1746451846455,-151.0,0.00019899,2]
[359962935,1746451846464,-151.0,0.00019899,2]
[359962937,1746451846473,-450.0,0.00019899,2]
[359962939,1746451846482,-494.0564744,0.00019899,2]
[359962941,1746451846491,-462.12054907,0.00019899,2]
[359962943,1746451846501,-463.08530949,0.00019899,2]
[359962945,1746451846510,-450.0,0.00019899,2]
[359962947,1746451846519,-531.49299216,0.00019899,2]
[359962949,1746451846528,-450.0,0.00019899,2]
[359962951,1746451846537,-450.0,0.00019899,2]
[359962953,1746451846546,-450.0,0.00019899,2]
[359962955,1746451846555,-467.42882723,0.00019899,2]
[359962957,1746451846565,-507.81,0.00019899,2]
[359962959,1746451846574,-450.0,0.00019899,2]
[359962961,1746451846583,-450.0,0.00019899,2]
[359962963,1746451846592,-833.451003,0.00019899,2]
[359962965,1746451846602,-450.0,0.00019899,2]
[359962967,1746451846611,-450.0,0.00019899,2]
[359962969,1746451846620,-833.451003,0.00019899,2]
[359962971,1746451846629,-151.0,0.00019899,2]
[359962973,1746451846638,-450.0,0.00019899,2]
[359962975,1746451846647,-151.0,0.00019899,2]
[359962977,1746451846657,-450.0,0.00019899,2]
[359962979,1746451846666,-450.0,0.00019899,2]
[359962981,1746451846675,-517.54027635,0.00019899,2]
[359962983,1746451846684,-490.0,0.00019899,2]
[359962985,1746451846694,-450.0,0.00019899,2]
[359962986,1746451846705,-450.0,0.00019899,2]
[359962987,1746451846714,-450.0,0.00019899,2]
[359962988,1746451846724,-450.0,0.00019899,2]
[359962989,1746451846733,-450.0,0.00019899,2]
[359962990,1746451846742,-450.0,0.00019899,2]
[359962991,1746451846751,-490.0,0.00019899,2]
[359962992,1746451846761,-450.0,0.00019899,2]
[359962993,1746451846770,-450.0,0.00019899,2]
[359962994,1746451846779,-150.0,0.00019899,2]
[359962995,1746451846789,-450.0,0.00019899,2]
[359962996,1746451846798,-150.0,0.00019899,2]
[359962997,1746451846808,-450.0,0.00019899,2]
[359962998,1746451846821,-150.0,0.00019899,2]
[359962999,1746451846830,-150.0,0.00019899,2]
[359963000,1746451846840,-480.43,0.00019899,2]
[359963001,1746451846850,-151.0,0.00019899,2]
[359963002,1746451846860,-159.112761,0.00019899,2]
[359963003,1746451846870,-151.0,0.00019899,2]
[359963004,1746451846879,-259.53,0.00019899,2]
[359963005,1746451846890,-450.0,0.00019899,2]
[359963006,1746451846901,-450.0,0.00019899,2]
[359963007,1746451846910,-450.0,0.00019899,2]
[359963008,1746451846920,-450.0,0.00019899,2]
[359963009,1746451846929,-450.0,0.00019899,2]
[359963010,1746451846939,-450.0,0.00019899,2]
[359963011,1746451846948,-450.0,0.00019899,2]
[359963012,1746451846958,-151.0,0.00019899,2]
[359963013,1746451846967,-450.0,0.00019899,2]
[359963014,1746451846977,-151.0,0.00019899,2]
[359963015,1746451846986,-223.711802,0.00019899,2]
[359963016,1746451846996,-450.0,0.00019899,2]
[359963017,1746451847006,-223.711802,0.00019899,2]
[359963018,1746451847015,-450.0,0.00019899,2]
[359963019,1746451847024,-450.0,0.00019899,2]
[359963020,1746451847033,-450.0,0.00019899,2]
[359963021,1746451847042,-450.0,0.00019899,2]
[359963022,1746451847051,-156.198394,0.00019899,2]
[359963023,1746451847060,-156.198394,0.00019899,2]
[359963024,1746451847069,-450.0,0.00019899,2]
[359963025,1746451847078,-470.0,0.00019899,2]
[359963026,1746451847087,-569.24456126,0.00019899,2]
[359963027,1746451847096,-457.95442225,0.00019899,2]
[359963028,1746451847106,-450.0,0.00019899,2]
[359963029,1746451847115,-450.0,0.00019899,2]
[359963030,1746451847124,-450.0,0.00019899,2]
[359963031,1746451847133,-450.0,0.00019899,2]
[359963032,1746451847142,-450.0,0.00019899,2]
[359963033,1746451847151,-450.0,0.00019899,2]
[359963034,1746451847160,-450.0,0.00019899,2]
[359963035,1746451847169,-500.0,0.00019899,2]
[359963036,1746451847179,-151.0,0.00019899,2]
[359963037,1746451847189,-450.0,0.00019899,2]
[359963038,1746451847198,-450.0,0.00019899,2]
[359963039,1746451847208,-151.0,0.00019899,2]
[359963040,1746451847219,-450.0,0.00019899,2]
[359963041,1746451847228,-581.97369639,0.00019899,2]
[359963042,1746451847238,-450.0,0.00019899,2]
[359963043,1746451847247,-500.0,0.00019899,2]
[359963044,1746451847257,-159.924298,0.00019899,2]
[359963045,1746451847266,-557.30350363,0.00019899,2]
[359963046,1746451847275,-450.0,0.00019899,2]
[359963047,1746451847284,-450.0,0.00019899,2]
[359963048,1746451847293,-450.0,0.00019899,2]
[359963049,1746451847303,-450.0,0.00019899,2]
[359963050,1746451847312,-450.0,0.00019899,2]
[359963051,1746451847321,-151.0,0.00019899,2]
[359963052,1746451847331,-464.20793038,0.00019899,2]
[359963053,1746451847340,-450.0,0.00019899,2]
[359963054,1746451847350,-450.0,0.00019899,2]
[359963055,1746451847360,-450.0,0.00019899,2]
[359963056,1746451847369,-487.28284461,0.00019899,2]
[359963057,1746451847378,-496.74402991,0.00019899,2]
[359963058,1746451847387,-483.56461967,0.00019899,2]
[359963059,1746451847397,-450.0,0.00019899,2]
[359963060,1746451847406,-450.0,0.00019899,2]
[359963061,1746451847524,-221.67267232,0.00019899,2]
[359963062,1746451847533,-450.0,0.00019899,2]
[359963063,1746451847543,-450.0,0.00019899,2]
[359963064,1746451847551,-450.0,0.00019899,2]
[359963065,1746451847561,-450.0,0.00019899,2]
[359963066,1746451847570,-450.0,0.00019899,2]
[359963067,1746451847580,-450.0,0.00019899,2]
[359963068,1746451847589,-150.0,0.00019899,2]
[359963069,1746451847598,-150.0,0.00019899,2]
[359963070,1746451847608,-450.0,0.00019899,2]
[359963071,1746451847617,-150.0,0.00019899,2]
[359963072,1746451847626,-483.96771364,0.00019899,2]
[359963073,1746451847635,-205.56417428,0.00019899,2]
[359963074,1746451847644,-460.81065554,0.00019899,2]
[359963075,1746451847653,-450.0,0.00019899,2]
[359963076,1746451847663,-450.0,0.00019899,2]
[359963077,1746451847672,-164.980668,0.00019899,2]
[359963078,1746451847681,-450.0,0.00019899,2]
[359963079,1746451847690,-450.0,0.00019899,2]
[359963080,1746451847700,-455.8056255,0.00019899,2]
[359963081,1746451847710,-151.0,0.00019899,2]
[359963082,1746451847719,-151.0,0.00019899,2]